[Event "Kwalificatie NJK B Groningen"]
[Site "Hoogkerk, Netherlands"]
[Date "2023.02.19"]
[Round "7.3"]
[White "Damen, Josephine"]
[Black "Blok, Xaveer"]
[Result "1-0"]
[TimeControl "55 min. + 10 sec./zet"]
[WhiteElo "1600"]
[BlackElo "1581"]

1. e4 {[%emt 00:00:03]} e5 {[%clk 00:55:15]} {[%emt 00:00:04]} 2. Nf3 {[%clk
00:55:24]} {[%emt 00:00:04]} Nc6 {[%clk 00:55:20]} {[%emt 00:00:05]} 3. Bc4
{[%clk 00:55:30]} {[%emt 00:00:04]} Bc5 {[%clk 00:55:18]} {[%emt 00:00:11]} 4.
c3 {[%clk 00:55:37]} {[%emt 00:00:03]} Nf6 {[%clk 00:55:09]} {[%emt 00:00:19]}
5. d4 {[%clk 00:55:43]} {[%emt 00:00:05]} exd4 {[%clk 00:54:59]} {[%emt
00:00:19]} 6. cxd4 {[%clk 00:55:49]} {[%emt 00:00:05]} Bb4+ {[%clk 00:54:58]}
{[%emt 00:00:11]} 7. Nc3 {[%clk 00:55:54]} {[%emt 00:00:05]} Nxe4 {[%clk
00:54:06]} {[%emt 00:01:03]} 8. O-O {[%clk 00:56:00]} {[%emt 00:00:03]} Bxc3
{[%clk 00:50:54]} {[%emt 00:03:21]} 9. d5 {[%clk 00:55:52]} {[%emt 00:00:18]}
Ne7 {[%clk 00:47:07]} {[%emt 00:03:56]} 10. bxc3 {[%clk 00:51:44]} {[%emt
00:04:20]} O-O {[%clk 00:45:33]} {[%emt 00:01:43]} 11. Re1 {[%clk 00:45:24]}
{[%emt 00:06:31]} Nd6 {[%clk 00:42:13]} {[%emt 00:03:29]} 12. Bb3 {[%clk
00:45:17]} {[%emt 00:00:18]} Kh8 {[%clk 00:38:41]} {[%emt 00:03:41]} 13. Qd3
{[%clk 00:35:42]} {[%emt 00:09:45]} b6 {[%clk 00:36:42]} {[%emt 00:02:10]} 14.
Ng5 {[%clk 00:30:29]} {[%emt 00:05:22]} Ng6 {[%clk 00:33:25]} {[%emt 00:03:25]}
15. Bc2 {[%clk 00:24:35]} {[%emt 00:06:07]} Qf6 {[%clk 00:26:12]} {[%emt
00:07:19]} 16. Nf3 {[%clk 00:14:52]} {[%emt 00:09:56]} h6 {[%clk 00:23:32]}
{[%emt 00:02:49]} 17. h4 {[%clk 00:14:10]} {[%emt 00:00:54]} Re8 {[%clk
00:22:48]} {[%emt 00:00:53]} 18. Rxe8+ {[%clk 00:11:12]} {[%emt 00:03:09]} Nxe8
{[%clk 00:22:47]} {[%emt 00:00:10]} 19. h5 {[%clk 00:11:15]} {[%emt 00:00:07]}
Nf8 {[%clk 00:22:43]} {[%emt 00:00:14]} 20. Be3 {[%clk 00:10:30]} {[%emt
00:00:56]} c6 {[%clk 00:21:33]} {[%emt 00:01:17]} 21. Bd4 {[%clk 00:09:05]}
{[%emt 00:01:37]} Qf4 {[%clk 00:17:08]} {[%emt 00:04:32]} 22. Re1 {[%clk
00:04:12]} {[%emt 00:05:07]} Bb7 {[%clk 00:14:07]} {[%emt 00:03:07]} 23. Be5
{[%clk 00:02:31]} {[%emt 00:01:55]} Qg4 {[%clk 00:13:38]} {[%emt 00:00:36]} 24.
Re4 {[%clk 00:02:38]} {[%emt 00:00:05]} Qxh5 {[%clk 00:12:36]} {[%emt
00:01:11]} 25. Rh4 {[%clk 00:02:44]} {[%emt 00:00:04]} Qg6 {[%clk 00:11:52]}
{[%emt 00:00:55]} 26. Qd2 {[%clk 00:02:47]} {[%emt 00:00:08]} f5 {[%clk
00:09:53]} {[%emt 00:02:06]} 27. Rxh6+ {[%clk 00:02:39]} {[%emt 00:00:21]} 1-0

[Event "Kwalificatie NJK B Groningen"]
[Site "Hoogkerk, Netherlands"]
[Date "2023.02.19"]
[Round "7.4"]
[White "Van Hesselingen, Guido"]
[Black "Snijders, Take"]
[Result "1-0"]
[TimeControl "55 min. + 10 sec./zet"]
[WhiteElo "1908"]
[BlackElo "1848"]

1. e4 {[%clk 00:55:16]} {[%emt 00:00:04]} c6 {[%clk 00:55:19]} {[%emt
00:00:02]} 2. d4 {[%clk 00:55:21]} {[%emt 00:00:04]} d5 {[%clk 00:55:27]}
{[%emt 00:00:02]} 3. e5 {[%clk 00:55:28]} {[%emt 00:00:04]} Bf5 {[%clk
00:55:35]} {[%emt 00:00:03]} 4. Nf3 {[%clk 00:55:30]} {[%emt 00:00:07]} e6
{[%clk 00:55:37]} {[%emt 00:00:08]} 5. Be2 {[%clk 00:55:33]} {[%emt 00:00:07]}
Nd7 {[%clk 00:55:40]} {[%emt 00:00:07]} 6. O-O {[%clk 00:55:30]} {[%emt
00:00:12]} Ne7 {[%clk 00:55:48]} {[%emt 00:00:02]} 7. Nbd2 {[%clk 00:55:05]}
{[%emt 00:00:36]} h6 {[%clk 00:55:46]} {[%emt 00:00:11]} 8. Nb3 {[%clk
00:52:42]} {[%emt 00:02:34]} g5 {[%clk 00:55:47]} {[%emt 00:00:08]} 9. Be3
{[%clk 00:51:06]} {[%emt 00:01:46]} Bg7 {[%clk 00:55:37]} {[%emt 00:00:21]} 10.
Rc1 {[%clk 00:48:05]} {[%emt 00:03:10]} O-O {[%clk 00:55:17]} {[%emt 00:00:30]}
11. h4 {[%clk 00:44:34]} {[%emt 00:03:42]} g4 {[%clk 00:50:43]} {[%emt
00:04:43]} 12. Ne1 {[%clk 00:44:37]} {[%emt 00:00:07]} h5 {[%clk 00:50:28]}
{[%emt 00:00:26]} 13. Nd3 {[%clk 00:42:43]} {[%emt 00:02:04]} Ng6 {[%clk
00:46:56]} {[%emt 00:03:42]} 14. g3 {[%clk 00:42:18]} {[%emt 00:00:34]} f6
{[%clk 00:45:08]} {[%emt 00:01:59]} 15. exf6 {[%clk 00:40:58]} {[%emt
00:01:30]} Bxf6 {[%clk 00:44:23]} {[%emt 00:00:54]} 16. Nf4 {[%clk 00:36:12]}
{[%emt 00:04:56]} Nxf4 {[%clk 00:44:03]} {[%emt 00:00:31]} 17. Bxf4 {[%clk
00:36:17]} {[%emt 00:00:04]} e5 {[%clk 00:39:22]} {[%emt 00:04:51]} 18. dxe5
{[%clk 00:35:46]} {[%emt 00:00:41]} Bxe5 {[%clk 00:38:59]} {[%emt 00:00:33]} 19.
Bh6 {[%clk 00:26:30]} {[%emt 00:09:26]} Bxb2 {[%clk 00:34:48]} {[%emt
00:04:20]} 20. Rb1 {[%clk 00:22:36]} {[%emt 00:04:05]} Bg7 {[%clk 00:34:41]}
{[%emt 00:00:16]} 21. Bxg7 {[%clk 00:21:56]} {[%emt 00:00:51]} Kxg7 {[%clk
00:34:43]} {[%emt 00:00:08]} 22. Nd4 {[%clk 00:21:58]} {[%emt 00:00:09]} Nc5
{[%clk 00:24:50]} {[%emt 00:10:03]} 23. Nxf5+ {[%clk 00:21:03]} {[%emt
00:01:05]} Rxf5 {[%clk 00:24:36]} {[%emt 00:00:23]} 24. Qd4+ {[%clk 00:21:08]}
{[%emt 00:00:05]} Qf6 {[%clk 00:23:53]} {[%emt 00:00:54]} 25. Qxc5 {[%clk
00:21:08]} {[%emt 00:00:09]} b6 {[%clk 00:23:27]} {[%emt 00:00:36]} 26. Qe3
{[%clk 00:19:04]} {[%emt 00:02:15]} Re5 {[%clk 00:22:45]} {[%emt 00:00:52]} 27.
Qd2 {[%clk 00:19:07]} {[%emt 00:00:07]} Rae8 {[%clk 00:22:38]} {[%emt
00:00:17]} 28. Bd3 {[%clk 00:17:00]} {[%emt 00:02:16]} Qe7 {[%clk 00:21:52]}
{[%emt 00:00:56]} 29. a4 {[%clk 00:11:30]} {[%emt 00:05:40]} c5 {[%clk
00:21:48]} {[%emt 00:00:15]} 30. c4 {[%clk 00:11:04]} {[%emt 00:00:35]} Rd8
{[%clk 00:21:01]} {[%emt 00:00:57]} 31. Rfe1 {[%clk 00:08:26]} {[%emt
00:02:47]} dxc4 {[%clk 00:20:21]} {[%emt 00:00:51]} 32. Qc3 {[%clk 00:07:28]}
{[%emt 00:01:08]} Rd4 {[%clk 00:19:33]} {[%emt 00:00:58]} 33. Bxc4 {[%clk
00:07:22]} {[%emt 00:00:16]} Kf8 {[%clk 00:18:55]} {[%emt 00:00:49]} 34. Rxe5
{[%clk 00:06:58]} {[%emt 00:00:34]} Qxe5 {[%clk 00:19:04]} 35. Re1 {[%clk
00:06:45]} {[%emt 00:00:22]} Qf6 {[%clk 00:19:08]} {[%emt 00:00:06]} 36. Bb5
{[%clk 00:05:17]} {[%emt 00:01:39]} Kg7 {[%clk 00:19:13]} {[%emt 00:00:05]} 37.
Qe3 {[%clk 00:04:57]} {[%emt 00:00:29]} c4 {[%clk 00:17:19]} {[%emt 00:02:04]}
38. Qe8 {[%clk 00:04:20]} {[%emt 00:00:47]} Rd6 {[%clk 00:16:35]} {[%emt
00:00:55]} 39. Bxc4 {[%clk 00:03:50]} {[%emt 00:00:39]} Rc6 {[%clk 00:16:23]}
{[%emt 00:00:22]} 40. Re7+ {[%clk 00:03:36]} {[%emt 00:00:24]} 1-0

[Event "Kwalificatie NJK B Groningen"]
[Site "Hoogkerk, Netherlands"]
[Date "2023.02.19"]
[Round "7.5"]
[White "Knippenberg, Hidde"]
[Black "Van Arendonk, Polle"]
[Result "0-1"]
[TimeControl "55 min. + 10 sec./zet"]
[WhiteElo "1721"]
[BlackElo "1906"]

1. b3 {[%clk 00:55:18]} {[%emt 00:00:36]} d5 {[%clk 00:55:18]} 2. Bb2 {[%clk
00:55:25]} Bf5 {[%clk 00:55:25]} 3. e3 {[%clk 00:55:31]} e6 {[%clk 00:55:31]} 4.
Nf3 {[%clk 00:55:37]} Nf6 {[%clk 00:55:28]} 5. Ne5 {[%clk 00:55:31]} {[%emt
00:01:16]} Nbd7 {[%clk 00:53:38]} {[%emt 00:01:39]} 6. f4 {[%clk 00:55:37]}
Nxe5 {[%clk 00:53:21]} {[%emt 00:01:08]} 7. fxe5 {[%clk 00:55:03]} Ne4 {[%clk
00:52:14]} {[%emt 00:00:45]} 8. Qf3 {[%clk 00:53:29]} {[%emt 00:01:57]} h5
{[%clk 00:50:37]} {[%emt 00:01:57]} 9. g3 {[%clk 00:52:23]} {[%emt 00:01:01]}
Bg4 {[%clk 00:44:44]} {[%emt 00:05:55]} 10. Qg2 {[%clk 00:51:38]} {[%emt
00:00:55]} Ng5 {[%clk 00:44:00]} {[%emt 00:00:53]} 11. Be2 {[%clk 00:50:45]}
{[%emt 00:01:21]} Bh3 {[%clk 00:39:54]} {[%emt 00:03:59]} 12. Qg1 {[%clk
00:50:50]} {[%emt 00:00:41]} Be7 {[%clk 00:39:04]} {[%emt 00:00:24]} 13. d3
{[%clk 00:50:37]} {[%emt 00:00:59]} f6 {[%clk 00:38:50]} 14. Nd2 {[%clk
00:42:01]} {[%emt 00:08:33]} fxe5 {[%clk 00:37:30]} {[%emt 00:01:34]} 15. O-O-O
{[%clk 00:42:06]} {[%emt 00:00:04]} Qd6 {[%clk 00:35:44]} {[%emt 00:02:12]} 16.
g4 {[%clk 00:40:02]} {[%emt 00:02:17]} hxg4 {[%clk 00:34:47]} {[%emt 00:00:45]}
17. Bxg4 {[%clk 00:40:06]} {[%emt 00:01:18]} O-O-O {[%clk 00:34:29]} 18. e4
{[%clk 00:38:03]} {[%emt 00:01:48]} Kb8 {[%clk 00:33:41]} {[%emt 00:01:27]} 19.
Re1 {[%clk 00:36:36]} {[%emt 00:02:24]} Bf6 {[%clk 00:32:12]} {[%emt 00:00:05]}
20. Bf3 {[%clk 00:26:46]} {[%emt 00:10:28]} Rh4 {[%clk 00:28:33]} {[%emt
00:03:46]} 21. Qg3 {[%clk 00:25:46]} {[%emt 00:00:44]} Rf4 {[%clk 00:26:38]}
{[%emt 00:02:23]} 22. Kb1 {[%clk 00:24:26]} {[%emt 00:01:42]} d4 {[%clk
00:21:45]} {[%emt 00:05:10]} 23. Bg2 {[%clk 00:23:14]} {[%emt 00:00:53]} Rg4
{[%clk 00:19:44]} {[%emt 00:02:02]} 24. Bxh3 {[%clk 00:23:11]} {[%emt
00:00:16]} Rxg3 {[%clk 00:19:49]} {[%emt 00:00:36]} 25. hxg3 {[%clk 00:23:16]}
Rh8 {[%clk 00:17:34]} {[%emt 00:02:29]} 26. Bg2 {[%clk 00:22:50]} {[%emt
00:00:14]} Rh6 {[%clk 00:17:08]} {[%emt 00:00:26]} 27. Ref1 {[%clk 00:22:26]}
{[%emt 00:00:38]} Qe7 {[%clk 00:16:57]} {[%emt 00:00:17]} 28. Bc1 {[%clk
00:22:07]} {[%emt 00:02:43]} a6 {[%clk 00:15:33]} 29. Nf3 {[%clk 00:17:28]}
{[%emt 00:04:09]} Rxh1 {[%clk 00:15:30]} {[%emt 00:00:38]} 30. Rxh1 {[%clk
00:17:34]} Nxf3 {[%clk 00:15:26]} 31. Bxf3 {[%clk 00:17:39]} Bg5 {[%clk
00:15:25]} {[%emt 00:00:22]} 32. Bxg5 {[%clk 00:12:19]} {[%emt 00:05:47]} Qxg5
{[%clk 00:15:31]} 33. g4 {[%clk 00:12:24]} c5 {[%clk 00:14:20]} {[%emt
00:01:20]} 34. Rc1 {[%clk 00:12:22]} {[%emt 00:00:17]} Kc7 {[%clk 00:14:12]}
{[%emt 00:00:05]} 35. a4 {[%clk 00:09:54]} {[%emt 00:02:29]} Kb6 {[%clk
00:13:46]} {[%emt 00:00:32]} 36. Kb2 {[%clk 00:08:31]} {[%emt 00:01:33]} Ka5
{[%clk 00:12:48]} {[%emt 00:01:54]} 37. Ra1 {[%clk 00:08:07]} Qe3 {[%clk
00:12:13]} {[%emt 00:01:06]} 38. Bd1 {[%clk 00:08:11]} Qd2 {[%clk 00:12:08]} 39.
Rb1 {[%clk 00:07:35]} {[%emt 00:00:55]} Qc3+ {[%clk 00:09:52]} {[%emt
00:02:27]} 40. Ka2 {[%clk 00:06:11]} {[%emt 00:01:36]} Kb4 {[%clk 00:08:09]}
{[%emt 00:02:07]} 41. Ra1 {[%clk 00:06:13]} Qe1 {[%clk 00:06:02]} {[%emt
00:01:55]} 42. Kb2 {[%clk 00:06:06]} {[%emt 00:01:08]} Qf1 {[%clk 00:04:40]}
{[%emt 00:00:50]} 43. Rb1 {[%clk 00:06:01]} {[%emt 00:00:59]} Ka5 {[%clk
00:04:26]} 44. Ra1 {[%clk 00:06:01]} Kb6 {[%clk 00:04:36]} 45. Rb1 {[%clk
00:05:52]} Kc7 {[%clk 00:04:42]} 46. Ra1 {[%clk 00:05:12]} {[%emt 00:00:46]} b6
{[%clk 00:04:36]} {[%emt 00:01:14]} 47. Rb1 {[%clk 00:03:53]} {[%emt 00:01:01]}
b5 {[%clk 00:04:27]} 48. axb5 {[%clk 00:03:58]} axb5 {[%clk 00:04:36]} 49. Ra1
{[%clk 00:03:58]} {[%emt 00:00:05]} Kb6 {[%clk 00:04:42]} {[%emt 00:00:59]} 50.
Rb1 {[%clk 00:03:51]} Kc6 {[%clk 00:04:33]} 51. Ra1 {[%clk 00:03:41]} {[%emt
00:00:15]} c4 {[%clk 00:04:31]} 52. bxc4 {[%clk 00:03:29]} {[%emt 00:00:52]}
bxc4 {[%clk 00:04:40]} 53. dxc4 {[%clk 00:03:27]} {[%emt 00:00:12]} Qxc4 {[%clk
00:04:46]} 54. Ra3 {[%clk 00:03:22]} Qf1 {[%clk 00:04:41]} {[%emt 00:00:08]} 55.
Bf3 {[%clk 00:03:30]} Kd6 {[%clk 00:04:27]} {[%emt 00:00:34]} 56. Rb3 {[%clk
00:03:38]} {[%emt 00:00:36]} Ke7 {[%clk 00:04:33]} 57. Rd3 {[%clk 00:02:57]}
{[%emt 00:00:35]} Kf6 {[%clk 00:04:41]} 58. Ka2 {[%clk 00:02:49]} {[%emt
00:00:14]} Kg5 {[%clk 00:04:50]} 59. Kb2 {[%clk 00:02:57]} Kf4 {[%clk
00:04:58]} 60. Bd1 {[%clk 00:03:05]} Kxe4 {[%clk 00:04:46]} {[%emt 00:00:08]}
61. Rd2 {[%clk 00:02:23]} {[%emt 00:01:26]} Qb5+ {[%clk 00:04:27]} {[%emt
00:00:12]} 62. Kc1 {[%clk 00:02:23]} {[%emt 00:00:42]} Kd5 {[%clk 00:04:21]} 63.
Rh2 {[%clk 00:01:29]} {[%emt 00:00:30]} Qf1 {[%clk 00:04:05]} {[%emt 00:00:35]}
64. Rh1 {[%clk 00:01:17]} {[%emt 00:00:36]} Qxh1 {[%clk 00:03:55]} {[%emt
00:00:09]} 0-1

[Event "Kwalificatie NJK B Groningen"]
[Site "Hoogkerk, Netherlands"]
[Date "2023.02.19"]
[Round "7.6"]
[White "Krylov, Philippe"]
[Black "Blom, Rens"]
[Result "1-0"]
[TimeControl "55 min. + 10 sec./zet"]
[WhiteElo "1862"]
[BlackElo "1758"]

1. d4 {[%clk 00:55:18]} d6 {[%clk 00:55:09]} 2. e4 {[%clk 00:55:08]} {[%emt
00:00:23]} Nf6 {[%clk 00:55:10]} {[%emt 00:00:14]} 3. Nc3 {[%clk 00:53:36]}
{[%emt 00:01:32]} g6 {[%clk 00:55:14]} {[%emt 00:00:15]} 4. f4 {[%clk
00:53:36]} {[%emt 00:00:08]} Bg7 {[%clk 00:55:20]} 5. Nf3 {[%clk 00:53:43]}
{[%emt 00:00:04]} c5 {[%clk 00:55:08]} {[%emt 00:00:18]} 6. dxc5 {[%clk
00:53:48]} {[%emt 00:00:10]} Qa5 {[%clk 00:55:15]} 7. Bd3 {[%clk 00:53:53]}
{[%emt 00:00:10]} Qxc5 {[%clk 00:55:20]} 8. Qe2 {[%clk 00:54:02]} O-O {[%clk
00:54:40]} {[%emt 00:01:21]} 9. Be3 {[%clk 00:54:08]} Qa5 {[%clk 00:54:46]} 10.
O-O {[%clk 00:54:11]} Bg4 {[%clk 00:54:50]} 11. Qf2 {[%clk 00:54:15]} Bxf3
{[%clk 00:54:40]} {[%emt 00:00:21]} 12. Qxf3 {[%clk 00:54:21]} Nc6 {[%clk
00:54:09]} {[%emt 00:00:44]} 13. Rab1 {[%clk 00:54:13]} {[%emt 00:00:13]} Nd7
{[%clk 00:52:36]} {[%emt 00:01:44]} 14. Qh3 {[%clk 00:45:46]} {[%emt 00:08:36]}
Nc5 {[%clk 00:50:49]} {[%emt 00:01:57]} 15. f5 {[%clk 00:44:31]} {[%emt
00:01:29]} Nxd3 {[%clk 00:39:33]} {[%emt 00:11:23]} 16. cxd3 {[%clk 00:44:32]}
{[%emt 00:00:29]} Rac8 {[%clk 00:38:29]} {[%emt 00:01:20]} 17. Nd5 {[%clk
00:41:14]} {[%emt 00:03:12]} Qd8 {[%clk 00:21:52]} {[%emt 00:16:36]} 18. f6
{[%clk 00:36:39]} {[%emt 00:04:45]} exf6 {[%clk 00:20:38]} {[%emt 00:01:32]} 19.
Bh6 {[%clk 00:36:03]} {[%emt 00:00:38]} Nd4 {[%clk 00:18:07]} {[%emt 00:02:41]}
20. Qxc8 {[%clk 00:33:36]} {[%emt 00:03:06]} Qxc8 {[%clk 00:16:23]} {[%emt
00:01:30]} 21. Ne7+ {[%clk 00:33:38]} {[%emt 00:00:05]} Kh8 {[%clk 00:16:31]}
{[%emt 00:00:05]} 22. Bxg7+ {[%clk 00:33:43]} Kxg7 {[%clk 00:16:40]} {[%emt
00:00:05]} 23. Nxc8 {[%clk 00:33:46]} {[%emt 00:00:05]} Rxc8 {[%clk 00:16:49]}
{[%emt 00:00:09]} 24. Kf2 {[%clk 00:31:02]} {[%emt 00:02:43]} f5 {[%clk
00:15:18]} {[%emt 00:01:41]} 25. Rbc1 {[%clk 00:28:17]} {[%emt 00:03:10]} Re8
{[%clk 00:13:26]} {[%emt 00:01:48]} 26. Rfe1 {[%clk 00:26:47]} {[%emt
00:01:45]} b5 {[%clk 00:11:40]} {[%emt 00:01:54]} 27. exf5 {[%clk 00:25:51]}
{[%emt 00:01:28]} Rxe1 {[%clk 00:11:42]} 28. Rxe1 {[%clk 00:25:15]} {[%emt
00:00:41]} Nxf5 {[%clk 00:11:34]} {[%emt 00:00:20]} 29. Re8 {[%clk 00:25:04]}
{[%emt 00:00:06]} a5 {[%clk 00:09:36]} {[%emt 00:02:09]} 30. g4 {[%clk
00:23:51]} {[%emt 00:01:23]} Nd4 {[%clk 00:08:30]} {[%emt 00:01:17]} 31. Rd8
{[%clk 00:23:43]} {[%emt 00:00:22]} Kf6 {[%clk 00:07:51]} {[%emt 00:00:53]} 32.
Rxd6+ {[%clk 00:23:31]} {[%emt 00:00:18]} Ke5 {[%clk 00:07:57]} 33. Rd7 {[%clk
00:23:20]} {[%emt 00:00:21]} f5 {[%clk 00:07:02]} {[%emt 00:01:16]} 34. gxf5
{[%clk 00:23:16]} {[%emt 00:00:05]} gxf5 {[%clk 00:05:57]} {[%emt 00:01:17]} 35.
Rxh7 {[%clk 00:23:13]} {[%emt 00:00:18]} a4 {[%clk 00:05:29]} {[%emt 00:00:32]}
36. h4 {[%clk 00:22:35]} {[%emt 00:01:03]} Nc6 {[%clk 00:03:32]} {[%emt
00:02:10]} 37. a3 {[%clk 00:21:08]} {[%emt 00:01:15]} b4 {[%clk 00:02:57]}
{[%emt 00:00:49]} 38. Rc7 {[%clk 00:20:41]} {[%emt 00:00:48]} bxa3 {[%clk
00:02:42]} {[%emt 00:00:19]} 39. bxa3 {[%clk 00:20:29]} {[%emt 00:00:14]} Kd6
{[%clk 00:02:27]} {[%emt 00:00:29]} 40. Rxc6+ {[%clk 00:20:24]} {[%emt
00:00:11]} Kxc6 {[%clk 00:02:33]} {[%emt 00:00:10]} 41. h5 {[%clk 00:20:25]}
{[%emt 00:00:09]} Kd5 {[%emt 00:00:46]} 1-0

[Event "Kwalificatie NJK B Groningen"]
[Site "Hoogkerk, Netherlands"]
[Date "2023.02.19"]
[Round "7.7"]
[White "Fallaux, Storm"]
[Black "Niemeijer, LÃ©on"]
[Result "0-1"]
[TimeControl "55 min. + 10 sec./zet"]
[WhiteElo "1643"]
[BlackElo "1860"]

1. e4 {[%clk 00:55:18]} e6 {[%clk 00:55:17]} 2. d4 {[%clk 00:55:23]} d5 {[%clk
00:55:26]} 3. Nd2 {[%clk 00:55:25]} {[%emt 00:01:12]} c5 {[%clk 00:55:32]} 4.
Ngf3 {[%clk 00:55:29]} cxd4 {[%clk 00:55:13]} 5. Nxd4 {[%clk 00:54:30]} {[%emt
00:00:35]} Nf6 {[%clk 00:54:45]} {[%emt 00:00:35]} 6. e5 {[%clk 00:54:27]}
{[%emt 00:00:57]} Nfd7 {[%clk 00:54:39]} 7. f4 {[%clk 00:54:12]} Nc6 {[%clk
00:54:06]} {[%emt 00:00:51]} 8. Nxc6 {[%clk 00:54:05]} {[%emt 00:02:51]} bxc6
{[%clk 00:54:14]} 9. Nf3 {[%clk 00:53:49]} Bc5 {[%clk 00:53:53]} 10. Bd3 {[%clk
00:52:39]} Qb6 {[%clk 00:53:38]} 11. Qe2 {[%clk 00:52:22]} {[%emt 00:00:46]} a5
{[%clk 00:52:41]} {[%emt 00:01:07]} 12. b3 {[%clk 00:48:47]} {[%emt 00:03:45]}
Ba6 {[%clk 00:51:08]} {[%emt 00:01:22]} 13. Bxa6 {[%clk 00:47:52]} {[%emt
00:01:05]} Rxa6 {[%clk 00:51:01]} {[%emt 00:00:54]} 14. Bb2 {[%clk 00:46:51]}
{[%emt 00:00:37]} a4 {[%clk 00:49:45]} {[%emt 00:01:51]} 15. Bc3 {[%clk
00:36:16]} {[%emt 00:10:20]} d4 {[%clk 00:40:57]} {[%emt 00:09:12]} 16. Bd2
{[%clk 00:35:18]} {[%emt 00:01:29]} axb3 {[%clk 00:40:33]} 17. cxb3 {[%clk
00:34:27]} {[%emt 00:01:51]} O-O {[%clk 00:40:13]} 18. Qd3 {[%clk 00:33:28]}
{[%emt 00:01:11]} Rfa8 {[%clk 00:38:30]} {[%emt 00:01:40]} 19. a4 {[%clk
00:30:07]} {[%emt 00:03:19]} Bb4 {[%clk 00:36:51]} {[%emt 00:01:49]} 20. Qxd4
{[%clk 00:28:21]} {[%emt 00:02:40]} Bxd2+ {[%clk 00:36:37]} 21. Qxd2 {[%clk
00:28:12]} Nc5 {[%clk 00:36:40]} {[%emt 00:00:32]} 22. Qe3 {[%clk 00:21:45]}
{[%emt 00:06:11]} Qb4+ {[%clk 00:31:01]} {[%emt 00:06:27]} 23. Nd2 {[%clk
00:21:40]} Rd8 {[%clk 00:30:51]} 24. Rd1 {[%clk 00:19:47]} {[%emt 00:01:57]}
Nd3+ {[%clk 00:30:42]} {[%emt 00:01:15]} 25. Kf1 {[%clk 00:17:44]} {[%emt
00:01:56]} Nb2 {[%clk 00:30:27]} 26. Ke2 {[%clk 00:12:02]} {[%emt 00:05:49]}
Nxd1 {[%clk 00:29:00]} {[%emt 00:02:15]} 27. Rxd1 {[%clk 00:12:07]} Ra5 {[%clk
00:18:02]} {[%emt 00:10:24]} 28. Nc4 {[%clk 00:08:40]} {[%emt 00:04:19]} Rxd1
{[%clk 00:17:57]} 29. Kxd1 {[%clk 00:08:47]} Rd5+ {[%clk 00:18:01]} 30. Kc2
{[%clk 00:08:24]} {[%emt 00:00:41]} c5 {[%clk 00:15:58]} {[%emt 00:02:09]} 31.
Qc3 {[%clk 00:07:11]} {[%emt 00:01:03]} Qb7 {[%clk 00:11:45]} {[%emt 00:04:23]}
32. Qf3 {[%clk 00:06:41]} {[%emt 00:00:47]} Qb8 {[%clk 00:05:50]} {[%emt
00:05:57]} 33. Qe3 {[%clk 00:05:22]} {[%emt 00:02:47]} Rd4 {[%clk 00:04:41]}
{[%emt 00:00:20]} 34. Na5 {[%clk 00:04:22]} {[%emt 00:00:51]} Qa8 {[%clk
00:04:20]} {[%emt 00:00:50]} 35. Nc4 {[%clk 00:04:20]} Qxg2+ {[%clk 00:04:20]}
{[%emt 00:00:32]} 36. Kc3 {[%clk 00:04:22]} Qxh2 {[%clk 00:03:21]} {[%emt
00:00:48]} 37. Qf3 {[%clk 00:04:06]} {[%emt 00:00:39]} h5 {[%clk 00:02:48]}
{[%emt 00:00:32]} 38. a5 {[%clk 00:04:00]} {[%emt 00:00:43]} h4 {[%clk
00:01:55]} {[%emt 00:00:36]} 39. a6 {[%clk 00:03:59]} {[%emt 00:00:24]} Qg3
{[%clk 00:02:00]} 40. Qxg3 {[%clk 00:03:48]} {[%emt 00:00:50]} hxg3 {[%clk
00:02:09]} 41. Nd6 {[%clk 00:03:54]} Rd1 {[%clk 00:02:05]} {[%emt 00:00:32]} 42.
Kb2 {[%clk 00:04:04]} Rd2+ {[%clk 00:02:05]} 43. Ka3 {[%clk 00:04:07]} Rd1
{[%clk 00:01:36]} {[%emt 00:00:11]} 44. Kb2 {[%clk 00:04:16]} g2 {[%clk
00:01:43]} 45. a7 {[%clk 00:04:25]} {[%emt 00:00:04]} g1=Q {[%clk 00:01:49]}
{[%emt 00:00:18]} 46. a8=Q+ {[%clk 00:04:33]} Kh7 {[%clk 00:01:57]} 47. Qe4+
{[%clk 00:04:29]} {[%emt 00:00:18]} Qg6 {[%clk 00:02:01]} {[%emt 00:00:42]} 48.
f5 {[%clk 00:03:34]} {[%emt 00:00:17]} exf5 {[%clk 00:01:41]} {[%emt 00:00:32]}
49. Qxf5 {[%clk 00:01:30]} {[%emt 00:02:28]} Qxf5 {[%clk 00:01:48]} {[%emt
00:00:09]} 50. Nxf5 {[%clk 00:01:39]} Re1 {[%clk 00:01:21]} {[%emt 00:00:18]}
51. Nd6 {[%clk 00:01:43]} Kg6 {[%clk 00:01:23]} {[%emt 00:00:16]} 52. Nc4
{[%emt 00:00:09]} Kf5 {[%clk 00:01:16]} {[%emt 00:00:08]} 53. Nd6+ {[%clk
00:01:44]} {[%emt 00:00:32]} Ke6 {[%clk 00:01:21]} 54. Ne8 {[%clk 00:01:40]} g6
{[%clk 00:01:19]} {[%emt 00:00:35]} 55. Nc7+ {[%clk 00:01:24]} Kxe5 {[%clk
00:01:26]} {[%emt 00:00:04]} 56. Na6 {[%clk 00:01:33]} Kd6 {[%clk 00:01:30]}
{[%emt 00:00:54]} 57. Kc2 {[%clk 00:01:39]} Ra1 {[%clk 00:01:33]} 58. b4 {[%clk
00:01:16]} {[%emt 00:02:02]} Rxa6 {[%clk 00:01:40]} 59. bxc5+ {[%clk 00:01:25]}
Kxc5 {[%clk 00:01:48]} 60. Kd3 {[%clk 00:01:34]} Ra4 {[%clk 00:01:57]} 61. Ke3
{[%clk 00:01:43]} Kd5 {[%clk 00:02:06]} 62. Kf3 {[%clk 00:01:51]} Ke5 {[%clk
00:02:15]} 63. Kg3 {[%clk 00:02:01]} Kf5 {[%clk 00:02:24]} 64. Kh3 {[%clk
00:02:10]} Kg5 {[%clk 00:02:31]} 65. Kh2 {[%clk 00:02:18]} Rg4 {[%clk
00:02:39]} 66. Kh3 {[%clk 00:02:27]} Kf4 {[%clk 00:02:48]} 67. Kh2 {[%clk
00:02:35]} Kf3 {[%clk 00:02:57]} 68. Kh3 {[%clk 00:02:44]} Rf4 {[%clk
00:03:04]} 69. Kh2 {[%clk 00:02:53]} Kf2 {[%clk 00:03:08]} 70. Kh3 {[%clk
00:03:02]} Re4 {[%clk 00:03:17]} 71. Kh2 0-1